bitfinex/quotes_ETHUSD_20220227
["timestamp","ask_amount","ask_price","bid_price","bid_amount"]
[1645943855728,12.4350172,2734.1,2732.8,4.50291927]
[1645943855729,0.00560605,2733.5,2732.8,4.50291927]
[1645943855927,0.00560605,2733.5,2733.2,1.08839085]
[1645943856528,0.00560605,2733.5,2732.8,1.00560764]
[1645943856727,0.76735464,2734.0,2732.7,5.4218]
[1645943856931,0.76735464,2734.0,2732.7,4.2136]
[1645943857129,0.76735464,2734.0,2732.7,4.9136]
[1645943858130,0.76735464,2734.0,2732.7,4.915393]
[1645943858396,12.13365464,2734.0,2732.7,4.603893]
[1645943858588,11.49364099,2733.8,2733.1,1.38361674]
[1645943858791,11.49364099,2733.8,2733.2,0.00298304]
[1645943858792,11.87715673,2733.7,2733.2,0.00298304]
[1645943858990,11.87715673,2733.7,2732.8,0.00298304]
[1645943858991,11.3663,2733.7,2732.8,0.00298304]
[1645943859190,12.6663,2733.7,2732.8,0.00298304]
[1645943859595,0.00580683,2733.6,2732.7,0.0058088]
[1645943860093,0.00580683,2733.6,2733.4,0.1008]
[1645943860296,0.1463,2733.7,2733.4,0.1008]
[1645943860494,0.3,2733.6,2733.4,0.1008]
[1645943860692,0.1463,2733.7,2733.4,0.1008]
[1645943861295,0.3675,2734.0,2733.4,0.1008]
[1645943861296,0.6675,2734.0,2733.4,0.1008]
[1645943861596,0.6675,2734.0,2732.7,3.1878914]
[1645943861597,3.7,2733.7,2732.7,3.1878914]
[1645943861793,3.70402137,2733.7,2732.8,1.3741305]
[1645943861993,3.70402137,2733.7,2732.9,4.5066305]
[1645943862227,3.70402137,2733.7,2733.5,0.5]
[1645943862723,3.7,2733.7,2732.9,3.5]
[1645943862924,3.7,2733.7,2733.0,1.00729704]
[1645943863527,3.7,2733.7,2733.4,1.2825883]
[1645943864127,3.70580935,2733.7,2733.4,1.2825883]
[1645943865029,3.7,2733.7,2733.4,1.2825883]
[1645943865229,3.70580935,2733.7,2733.4,1.2825883]
[1645943865883,2.05708433,2733.7,2733.5,3.5]
[1645943866281,2.05127498,2733.7,2733.5,4.5]
[1645943866481,2.05127498,2733.7,2733.6,4.47750071]
[1645943866686,2.0570843,2733.7,2733.6,4.47750071]
[1645943866882,2.0570843,2733.7,2733.6,4.5]
[1645943867084,2.0570843,2733.7,2733.6,5.47758897]
[1645943867482,2.05127498,2733.7,2733.6,5.47758897]
[1645943868787,2.05127498,2733.7,2733.6,1.97758897]
[1645943869186,2.05127498,2733.7,2733.6,0.97758897]
[1645943869626,2.05127498,2733.7,2733.6,4.47758897]
[1645943869834,0.67425718,2733.7,2733.6,6.14508897]
[1645943870030,6.011e-05,2733.7,2733.6,6.14508897]
[1645943870231,0.54718503,2734.9,2733.8,0.3675]
[1645943870432,8.28516027,2735.3,2734.0,0.3675]
[1645943870433,0.54718503,2734.8,2734.0,0.3675]
[1645943870632,0.54718503,2734.7,2734.2,0.3675]
[1645943870830,0.54718503,2735.1,2733.8,3.8]
[1645943871032,8.05257513,2735.3,2734.2,0.3675]
[1645943871033,0.54718503,2735.0,2734.2,0.3675]
[1645943871233,0.54718503,2734.9,2734.2,3.8675]
[1645943871433,0.00581134,2734.6,2734.2,0.3675]
[1645943871633,0.00581134,2734.6,2734.2,1.3675]
[1645943871833,0.00581134,2734.6,2734.2,0.3675]
[1645943872232,0.1462,2735.3,2733.9,4.8]
[1645943872438,0.54687335,2735.2,2734.0,0.97521028]
[1645943872635,0.00581137,2734.5,2734.4,1.16929483]
[1645943872836,0.00581137,2734.5,2734.1,4.8]
[1645943873037,0.00581137,2734.5,2734.2,0.97498679]
[1645943873235,0.00581137,2734.5,2734.1,1.6]
[1645943873475,3.7,2734.6,2734.1,1.6]
[1645943873675,3.7,2734.6,2734.1,0.3]
[1645943873875,0.00581141,2734.5,2734.2,1.01511221]
[1645943874477,0.00581141,2734.5,2734.1,0.3]
[1645943874676,3.7,2734.6,2734.1,0.3]
[1645943874881,3.7,2734.6,2734.0,3.8]
[1645943875084,0.00581141,2734.5,2734.1,0.97405371]
[1645943875281,0.00581141,2734.5,2734.0,1.6]
[1645943875681,0.00581141,2734.5,2734.1,1.01479284]
[1645943875881,3.7,2734.6,2734.1,1.01479284]
[1645943876082,0.00581147,2734.4,2734.1,1.31479284]
[1645943877130,3.7,2734.6,2734.1,1.31479284]
[1645943877332,0.00581147,2734.4,2734.1,1.31479284]
[1645943878331,3.7,2734.6,2734.1,1.31479284]
[1645943878533,0.00581147,2734.4,2734.1,1.31479284]
[1645943879435,3.7,2734.6,2734.1,1.31479284]
[1645943879834,0.00581147,2734.4,2734.1,4.81479284]
[1645943880036,0.00581147,2734.4,2734.1,1.31479284]
[1645943880238,3.60171147,2734.6,2734.1,4.81479284]
[1645943880434,3.60171147,2734.6,2734.1,1.31479284]
[1645943883383,0.0058113,2734.5,2734.1,1.01479284]
[1645943884283,3.60171147,2734.6,2734.1,1.01479284]
[1645943884484,3.60171147,2734.6,2733.6,4.50296608]
[1645943884725,0.00581123,2734.5,2733.7,0.97167145]
[1645943884929,0.00581123,2734.5,2733.8,3.5]
[1645943885128,0.00581123,2734.5,2733.8,3.8]
[1645943885331,0.00581123,2734.5,2733.8,4.8]
[1645943885528,3.60171147,2734.6,2734.3,1.26851133]
[1645943885731,0.00581101,2734.5,2734.3,1.26851133]
[1645943886133,0.00581101,2734.5,2733.9,4.5]
[1645943886730,3.60171147,2734.6,2733.9,4.5]
[1645943886932,0.00581108,2734.5,2733.9,4.5]
[1645943887733,3.60171147,2734.6,2734.5,0.00166327]
[1645943893435,3.60171147,2734.6,2734.2,1.21048087]
[1645943894233,3.60752263,2734.6,2734.3,0.97389784]
[1645943894435,3.60752263,2734.6,2734.2,1.21048087]
[1645943895038,3.60171147,2734.6,2734.2,1.21048087]
[1645943895238,3.60171147,2734.6,2734.3,0.97472661]
[1645943895439,3.60752263,2734.6,2734.3,0.97472661]
[1645943896284,3.60171147,2734.6,2734.3,0.97472661]
[1645943896685,3.6075227,2734.6,2734.3,0.97472661]
[1645943897187,3.6075227,2734.6,2734.3,4.47472661]
[1645943897387,3.6075227,2734.6,2734.4,0.97472661]
[1645943897586,3.6075227,2734.6,2734.2,2.21048087]
[1645943897587,3.60171147,2734.6,2734.3,3.5]
[1645943897787,3.6075227,2734.6,2734.4,0.97470854]
[1645943897986,3.6075227,2734.6,2734.3,3.5]
[1645943898188,3.6075227,2734.6,2734.4,0.97469554]
[1645943898492,3.6075227,2734.6,2734.3,3.5]
[1645943898690,3.60171147,2734.6,2734.3,3.5]
[1645943898886,3.61659771,2734.6,2734.4,0.97468987]
[1645943899089,3.61659771,2734.6,2734.3,3.5]
[1645943899286,3.61659771,2734.6,2734.4,0.97465919]
[1645943899486,3.61659771,2734.6,2734.3,3.5]
[1645943899729,3.61659771,2734.6,2734.4,0.97471194]
[1645943899930,3.6107864,2734.6,2734.4,0.97471194]
[1645943900130,3.61659763,2734.6,2734.2,1.21048087]
[1645943900331,3.61659763,2734.6,2734.3,0.97475149]
[1645943901138,3.6107864,2734.6,2734.3,0.97475149]
[1645943901335,3.61659763,2734.6,2734.3,0.97475149]
[1645943902335,3.6107864,2734.6,2734.3,0.97475149]
[1645943902536,3.61659763,2734.6,2734.3,0.97475149]
[1645943903397,0.54785115,2734.5,2733.7,3.1055]
[1645943903587,0.54785115,2734.5,2733.8,0.97525425]
[1645943903588,0.91535115,2734.5,2733.8,0.97525425]
[1645943903792,0.91535115,2734.5,2733.9,0.97525425]
[1645943903793,0.91535115,2734.4,2733.9,0.97525425]
[1645943903987,0.54785115,2734.3,2734.0,0.97525425]
[1645943904187,0.54785115,2734.3,2733.6,0.02325338]
[1645943904387,0.54785115,2734.3,2733.7,0.97880761]
[1645943904589,0.3675,2734.2,2733.7,0.97880761]
[1645943904887,0.91535115,2734.1,2733.7,0.97880761]
[1645943905093,0.54785115,2734.0,2733.8,0.97880761]
[1645943905291,0.54785115,2734.0,2733.5,0.0290654]
[1645943905491,0.54785115,2734.0,2733.6,0.97945064]
[1645943906092,0.54785115,2734.0,2733.4,0.00296608]
[1645943906093,0.54785115,2734.0,2733.7,0.97945064]
[1645943906297,0.54785115,2734.0,2733.8,0.97945064]
[1645943906492,0.54785115,2734.0,2733.9,0.97945064]
[1645943906691,0.54785115,2734.0,2733.9,0.97980472]
[1645943906893,0.54785115,2734.0,2733.6,0.97980472]
[1645943907129,0.54785115,2733.9,2733.6,0.97980472]
[1645943907329,0.3675,2734.2,2733.6,0.97980472]
[1645943907531,0.54615908,2734.1,2733.6,0.97980472]
[1645943907731,0.54615908,2734.0,2733.6,0.97980472]
[1645943907933,0.54615908,2733.9,2733.6,0.97980472]
[1645943908133,0.3,2734.4,2733.9,0.70445717]
[1645943908333,0.54632237,2734.3,2734.0,0.97980472]
[1645943908531,0.54632237,2734.2,2734.0,0.97980472]
[1645943908732,0.54632237,2734.1,2733.9,0.70445717]
[1645943908937,0.54632237,2734.0,2733.9,0.70445717]
[1645943909333,0.54632237,2734.4,2733.9,1.68483731]
[1645943909534,0.00767608,2734.1,2733.9,0.70445717]
[1645943909734,0.54632237,2734.0,2733.9,0.70445717]
[1645943910135,0.54632237,2734.0,2733.9,1.68510629]
[1645943911388,0.49632237,2734.0,2733.9,1.68510629]
[1645943915431,0.49632237,2734.0,2733.9,1.63510629]
[1645943918138,0.49632237,2734.0,2733.9,0.65445717]
[1645943924933,4.19632237,2734.0,2733.9,0.65445717]
[1645943930847,4.19632237,2734.0,2733.9,4.15445717]
[1645943930848,3.7,2734.0,2733.9,4.15445717]
[1645943931451,3.7,2734.0,2733.9,5.13726642]
[1645943931650,3.7,2734.0,2733.9,6.56281428]
[1645943931852,3.7,2734.0,2733.9,7.56281428]
[1645943932049,3.7,2734.0,2733.9,4.06281428]
[1645943932250,3.7,2734.0,2733.9,7.56281428]
[1645943932851,3.7,2734.0,2733.9,4.06281428]
[1645943933498,3.7,2734.0,2733.9,1.63726642]
[1645943934099,4.24214405,2734.0,2733.9,1.63726642]
[1645943944648,8.10964405,2734.0,2733.9,1.63726642]
[1645943944848,20.02221918,2734.0,2733.9,0.65313713]
[1645943945045,20.55321918,2734.0,2733.9,0.65313713]
[1645943946249,21.77609332,2734.0,2733.9,0.65313713]
[1645943946651,0.3675,2733.8,2733.5,0.00506512]
[1645943946852,4.40964405,2733.7,2733.6,0.99561634]
[1645943947049,4.40964405,2733.7,2733.5,0.00506512]
[1645943947253,0.3675,2733.7,2733.6,0.99561634]
[1645943947449,0.9000834,2733.7,2733.6,0.99561634]
[1645943949491,0.9000834,2733.7,2733.6,0.94561634]
[1645943949692,0.65186593,2733.4,2733.2,0.5]
[1645943949892,0.65186593,2733.4,2733.3,0.99644412]
[1645943950092,1.18463316,2733.4,2733.3,0.99644412]
[1645943955155,1.13463316,2733.4,2733.3,0.99644412]
[1645943955356,1.13463316,2733.4,2733.3,0.94644412]
[1645943957899,4.83463316,2733.4,2733.3,0.94644412]
[1645943967134,4.30186593,2733.4,2733.3,0.94644412]
[1645943975533,4.81270111,2733.4,2733.3,0.94644412]
[1645943977545,4.81270111,2733.4,2733.3,0.89644412]
[1645943980809,8.31270111,2733.4,2733.3,0.89644412]
[1645943981309,4.81270111,2733.4,2733.3,0.89644412]
[1645943982955,16.03270111,2733.4,2733.3,0.89644412]
[1645943983358,7.5,2733.3,2733.2,0.50581324]
[1645943983562,22.43138377,2733.3,2733.2,0.00581324]
[1645943983758,22.43138377,2733.3,2732.8,0.02325646]
[1645943983759,11.22,2733.1,2732.8,0.02325646]
[1645943983960,14.72,2733.0,2732.6,0.00296608]
[1645943984162,0.22268334,2732.9,2732.4,0.25]
[1645943984360,0.22268334,2732.9,2732.3,0.00296608]
[1645943984562,0.22268334,2732.9,2732.1,0.33090641]
[1645943984764,11.81018334,2732.9,2732.1,0.33392482]
[1645943984961,11.81018334,2732.9,2732.1,0.00301841]
[1645943985361,11.22,2732.7,2732.1,0.00301841]
[1645943985563,11.22,2732.7,2732.0,3.0993]
[1645943985762,11.22,2732.7,2731.8,0.91843228]
[1645943986198,11.22,2732.7,2732.3,0.5]
[1645943986798,3.5,2732.6,2732.3,0.5]
[1645943987197,14.72,2732.6,2732.3,0.5]
[1645943987600,14.72,2732.6,2732.3,0.0422]
[1645943987999,14.72,2732.6,2732.3,0.04801383]
[1645943988803,14.72,2732.6,2732.3,0.0422]
[1645943989200,14.72,2732.6,2732.3,0.04780168]
[1645943989398,11.22,2732.7,2732.3,0.04780168]
[1645943989646,14.72,2732.6,2732.3,0.04780168]
[1645943989846,11.22,2732.6,2732.3,0.04780168]
[1645943990050,11.22,2732.6,2732.3,0.0422]
[1645943990450,11.22,2732.6,2732.3,0.04780168]
[1645943990748,11.22,2732.6,2731.7,4.2358]
[1645943990749,5.0,2732.5,2731.7,3.85123019]
[1645943991047,11.22,2732.6,2731.7,3.85123019]
[1645943991452,11.22,2732.6,2732.3,0.5]
[1645943991649,11.3663,2732.7,2732.3,0.5]
[1645943992451,3.7,2732.6,2732.3,0.5]
[1645943992654,3.70581322,2732.6,2732.3,0.5]
[1645943993697,3.70581322,2732.6,2732.3,0.0422]
[1645943993698,3.7,2732.6,2732.3,0.0422]
[1645943993896,3.7,2732.6,2731.7,7.35123019]
[1645943994097,3.70581326,2732.6,2732.3,0.0416]
[1645943994894,7.15669168,2732.6,2732.3,0.0416]
[1645943995098,7.16250494,2732.6,2732.3,0.0416]
[1645943995299,3.70489214,2732.6,2732.3,0.0416]
[1645943995696,14.92489214,2732.6,2732.3,0.0416]
[1645943995897,14.92489214,2732.6,2732.4,0.0408]
[1645943996098,14.91907888,2732.6,2732.4,0.0408]
[1645943996298,14.92489214,2732.6,2732.4,0.0408]
[1645943996500,3.70489214,2732.6,2732.4,0.0408]
[1645943997146,3.63805169,2732.6,2732.4,0.0408]
[1645943997347,3.63223843,2732.6,2732.4,0.0408]
[1645943997549,3.63805165,2732.6,2732.4,0.0408]
[1645943998553,3.63223843,2732.6,2732.4,0.0408]
[1645943998752,3.63805165,2732.6,2732.4,0.0408]
[1645943999153,3.63805165,2732.6,2732.1,1.15856456]
[1645943999357,3.63805165,2732.6,2732.1,1.15556222]
[1645943999756,3.63223843,2732.6,2732.3,0.5]
[1645943999954,0.00581332,2732.5,2732.3,0.5]
[1645944001027,3.63223843,2732.6,2732.3,0.5]
[1645944001227,0.00581329,2732.5,2732.3,0.5]
[1645944002127,3.63223843,2732.6,2732.3,0.5]
[1645944002330,0.00581329,2732.5,2732.3,0.5]
[1645944003332,3.63223843,2732.6,2732.3,0.5]
[1645944003534,0.00581329,2732.5,2732.4,0.96403777]
[1645944004533,3.63223843,2732.6,2732.4,0.96403777]
[1645944004749,3.63805169,2732.6,2732.4,0.96403777]
[1645944005755,3.63223843,2732.6,2732.4,0.96403777]
[1645944005955,3.63805165,2732.6,2732.4,0.96403777]
[1645944006953,3.63223843,2732.6,2732.4,0.96403777]
[1645944007153,3.63805165,2732.6,2732.4,0.96403777]
[1645944009313,3.63223843,2732.6,2732.4,0.96403777]
[1645944009513,3.63805165,2732.6,2732.4,0.96403777]
[1645944009913,1.98867888,2732.6,2732.4,0.96403777]
[1645944010512,1.98286566,2732.6,2732.4,0.96403777]
[1645944010713,1.98867888,2732.6,2732.4,0.96403777]
[1645944011714,1.98286566,2732.6,2732.4,0.96403777]
[1645944011914,1.98867888,2732.6,2732.4,0.96403777]
[1645944012951,1.98286566,2732.6,2732.4,0.96403777]
[1645944013150,1.98867888,2732.6,2732.4,0.96403777]
[1645944014055,1.98286566,2732.6,2732.4,0.96403777]
[1645944014256,1.98867888,2732.6,2732.4,0.96403777]
[1645944015258,1.98286566,2732.6,2732.4,0.96403777]
[1645944015558,1.98867888,2732.6,2732.4,0.96403777]
[1645944016416,0.59563013,2732.5,2732.4,0.96403777]
[1645944016817,1.98690986,2732.6,2732.4,0.96403777]
[1645944017617,1.98286566,2732.6,2732.4,0.96403777]
[1645944017818,1.98690986,2732.6,2732.4,0.96403777]
[1645944018824,1.98286566,2732.6,2732.4,0.96403777]
[1645944019222,1.98867632,2732.6,2732.4,0.96403777]
[1645944020054,1.98286566,2732.6,2732.4,0.96403777]
[1645944020258,0.59608407,2732.5,2732.4,0.96403777]
[1645944024209,11.81608407,2732.5,2732.4,0.96403777]
[1645944026913,11.22,2732.5,2732.3,0.5]
[1645944027160,11.22,2732.5,2732.4,0.93355994]
[1645944027352,11.81732578,2732.5,2732.4,0.93355994]
[1645944027552,11.82275012,2732.5,2732.4,0.93355994]
[1645944027952,12.12275012,2732.5,2732.4,0.93355994]
[1645944028553,12.11732578,2732.5,2732.4,0.93355994]
[1645944029955,12.11786359,2732.5,2732.4,0.93355994]
[1645944030154,11.52,2732.5,2732.4,0.93355994]
[1645944030918,12.11790437,2732.5,2732.4,0.93518626]
[1645944031127,12.11790385,2732.5,2732.4,0.93518626]
[1645944031425,12.11786941,2732.5,2732.4,0.93518626]
[1645944031624,11.52,2732.5,2732.4,0.93518626]
[1645944031826,12.11784872,2732.5,2732.4,0.93518626]
[1645944032027,12.11784843,2732.5,2732.4,0.93518626]
[1645944032324,11.52,2732.5,2732.4,0.93518626]
[1645944032925,12.11783411,2732.5,2732.4,0.93518626]
[1645944033126,12.11783553,2732.5,2732.4,0.93518626]
[1645944033331,12.11787592,2732.5,2732.4,0.93518626]
[1645944033726,11.52,2732.5,2732.4,0.93518626]
[1645944033925,12.11787485,2732.5,2732.4,0.93518626]
[1645944034127,11.52,2732.5,2732.4,0.93518626]
[1645944034330,12.11786978,2732.5,2732.4,0.93518626]
[1645944034527,12.11785852,2732.5,2732.4,0.93518626]
[1645944034963,12.11785792,2732.5,2732.4,0.93518626]
[1645944035168,12.34075618,2732.5,2732.4,0.93518626]
[1645944035664,0.22384916,2732.3,2732.0,0.00300234]
[1645944035864,0.22384916,2732.3,2731.8,0.68692254]
[1645944036070,0.22384916,2732.3,2731.8,0.00545016]
[1645944036269,0.22384916,2732.3,2731.8,0.68937036]
[1645944036471,0.22384916,2732.3,2732.1,0.5]
[1645944036875,0.22384916,2732.3,2731.8,0.68692254]
[1645944037073,0.22384916,2732.3,2732.1,0.5]
[1645944037270,0.22929796,2732.3,2732.1,0.5]
[1645944038070,0.22384916,2732.3,2732.1,0.5]
[1645944038519,0.22929796,2732.3,2732.1,0.5]
[1645944039319,0.22384916,2732.3,2731.8,0.00300234]
[1645944039524,11.44384916,2732.3,2732.1,0.5]
[1645944039719,11.74929796,2732.3,2732.1,0.5]
[1645944040418,11.74384916,2732.3,2732.1,0.5]
[1645944040823,11.74947696,2732.3,2732.1,0.5]
[1645944041622,11.74384916,2732.3,2732.1,0.5]
[1645944042168,11.74947696,2732.3,2732.1,0.5]
[1645944042958,11.74384916,2732.3,2732.1,0.5]
[1645944043275,11.74947696,2732.3,2732.1,0.5]
[1645944043659,0.52947696,2732.3,2732.1,0.5]
[1645944043958,11.74947696,2732.3,2732.1,0.5]
[1645944044157,11.74384916,2732.3,2732.1,0.5]
[1645944044359,11.74929009,2732.3,2732.1,0.5]
[1645944045905,0.52929009,2732.3,2732.1,0.5]
[1645944046509,0.52384916,2732.3,2731.7,3.00347624]
[1645944046711,0.52929009,2732.3,2731.8,0.00544207]
[1645944046912,0.22929009,2732.3,2731.8,0.00544207]
[1645944047113,0.22929009,2732.3,2731.9,0.6839202]
[1645944047317,1.98286566,2732.6,2732.0,12.5824202]
[1645944047318,0.34899612,2732.6,2732.0,12.5824202]
[1645944047512,0.69231998,2733.5,2732.4,0.6839202]
[1645944047714,0.92516027,2733.8,2733.3,1.11688815]
[1645944047715,0.69231998,2733.6,2733.3,1.11688815]
[1645944048113,0.69231998,2733.7,2732.7,0.3675]
[1645944048313,2.16676027,2733.9,2732.9,0.3675]
[1645944048314,0.69231998,2733.6,2732.9,0.3675]
[1645944048914,0.69231998,2733.7,2732.9,0.3675]
[1645944049115,0.69231998,2733.7,2733.0,3.8675]
[1645944049315,3.7,2733.6,2733.0,0.3675]
[1645944049962,3.7,2733.6,2733.2,1.01946167]
[1645944050457,3.45634479,2733.6,2733.3,3.8675]
[1645944051660,3.46215484,2733.6,2733.3,3.8675]
[1645944052464,3.45634479,2733.6,2733.3,0.3675]
[1645944052659,3.45634479,2733.6,2733.2,1.01946167]
[1645944052858,3.46215484,2733.6,2733.2,1.01946167]
[1645944054001,3.45634479,2733.6,2733.2,1.01946167]
[1645944054302,0.00581008,2733.5,2733.2,1.01946167]
[1645944054900,3.45634479,2733.6,2733.2,1.01946167]
[1645944055204,0.00581011,2733.5,2733.2,1.01946167]
[1645944055403,2.4621549,2733.6,2733.2,1.01946167]
[1645944055602,0.55739454,2733.5,2733.3,0.96597652]
[1645944056606,0.55739454,2733.5,2733.2,1.01946167]
[1645944056806,0.55739454,2733.5,2733.3,0.96577]
[1645944058077,0.55739454,2733.5,2733.2,1.01946167]
[1645944058277,0.55739454,2733.5,2733.3,0.96579453]
[1645944058478,0.55739454,2733.5,2733.4,3.5]
[1645944058679,2.4621549,2733.6,2733.5,0.71068694]
[1645944058880,2.4621549,2733.6,2733.5,5.54364753]
[1645944059082,0.00096,2734.3,2733.6,7.8675]
[1645944059283,0.92516027,2734.9,2733.6,7.8675]
[1645944059284,0.55785476,2734.5,2733.8,0.3675]
[1645944059480,0.55689476,2734.5,2734.0,0.3675]
[1645944059682,0.55689476,2734.5,2734.4,1.13001055]
[1645944059878,0.69231998,2734.8,2734.4,1.13001055]
[1645944060081,0.55689476,2734.7,2734.1,3.5]
[1645944060484,0.55689476,2734.6,2734.1,3.5]
[1645944060681,0.55689476,2734.5,2734.1,3.5]
[1645944060906,0.55689476,2734.4,2733.9,3.8675]
[1645944061111,1.25017474,2734.9,2734.3,1.03144384]
[1645944061311,0.00581048,2734.5,2733.9,4.8675]
[1645944061511,0.55627049,2734.4,2733.9,4.8675]
[1645944062110,0.55627049,2734.4,2734.0,0.96268001]
[1645944062313,0.55627049,2734.4,2734.1,3.5]
[1645944062314,0.00581061,2734.3,2734.1,3.5]
[1645944062510,0.00581061,2734.3,2734.1,4.90561096]
[1645944062711,0.00581061,2734.3,2734.1,3.5]
[1645944063311,3.7,2734.5,2734.1,3.5]
[1645944063510,0.55626164,2734.4,2734.1,3.5]
[1645944063713,0.00581057,2734.3,2734.2,1.41534371]
[1645944064012,0.56207221,2734.3,2734.2,1.41534371]
[1645944064669,0.55626164,2734.3,2734.2,1.41534371]
[1645944064854,0.56207218,2734.4,2734.1,3.5]
[1645944065055,0.00581054,2734.4,2734.1,3.5]
[1645944065863,3.7,2734.5,2734.1,4.8]
[1645944066062,0.00581054,2734.4,2734.1,4.8]
[1645944067063,3.7,2734.5,2734.1,4.8]
[1645944067261,0.00581054,2734.4,2734.1,4.8]
[1645944067460,0.00581054,2734.4,2734.2,1.3691001]
[1645944067660,0.00581054,2734.4,2734.1,3.5]
[1645944067661,0.00581054,2734.4,2734.1,1.0]
[1645944067860,0.00581054,2734.4,2734.0,1.0]
[1645944068062,0.00581054,2734.4,2733.8,4.8]
[1645944068267,3.7,2734.5,2733.8,1.0]
[1645944068505,0.00581057,2734.3,2733.8,1.0]
[1645944068705,0.00581057,2734.3,2734.0,1.38896934]
[1645944069406,3.7,2734.5,2734.0,1.38896934]
[1645944069605,0.00581061,2734.3,2733.9,3.5]
[1645944070207,3.65581061,2734.5,2733.9,3.5]
[1645944070813,3.65581061,2734.5,2733.8,1.43339006]
[1645944071010,3.65581061,2734.5,2733.7,0.01460764]
[1645944072014,0.00403547,2734.4,2733.7,0.01460764]
[1645944072957,3.65581061,2734.5,2733.7,0.01460764]
[1645944073161,0.00581014,2734.4,2733.7,0.01460764]
[1645944074159,3.65581061,2734.5,2733.7,0.01460764]
[1645944074360,0.00581014,2734.4,2733.7,0.01460764]
[1645944075463,3.65581061,2734.5,2733.7,0.01460764]
[1645944075662,0.00581014,2734.4,2733.9,1.3745752]
[1645944076508,3.65581061,2734.5,2733.9,1.3745752]
[1645944076708,3.65581061,2734.5,2733.7,0.01460764]
[1645944076912,0.00581029,2734.4,2733.7,0.01460764]
[1645944077511,0.00581029,2734.4,2733.6,4.71460764]
[1645944077710,0.00096,2734.4,2733.8,1.39577535]
[1645944077910,3.65581061,2734.5,2733.8,1.39577535]
[1645944078113,0.00581014,2734.4,2733.9,3.5]
[1645944078310,0.00581014,2734.4,2733.8,1.39577535]
[1645944078913,3.65581061,2734.5,2733.9,3.5]
[1645944079315,0.00581021,2734.4,2733.8,4.89577535]
[1645944079782,0.00581021,2734.4,2733.8,1.39577535]
[1645944080170,3.65581061,2734.5,2733.8,1.39577535]
[1645944080372,0.00403175,2734.4,2733.8,1.39577535]
[1645944080773,0.00403175,2734.4,2733.9,3.5]
[1645944081379,3.65581061,2734.5,2733.8,1.39577535]
[1645944081580,0.0058122,2734.4,2733.8,4.89577535]
[1645944081780,0.0058122,2734.4,2733.8,1.39577535]
[1645944081980,0.0058122,2734.4,2733.8,2.39577535]
[1645944082380,0.0058122,2734.4,2733.8,1.39577535]
[1645944082580,3.65581061,2734.5,2733.8,1.39577535]
[1645944082780,0.00581213,2734.4,2733.8,4.89577535]
[1645944083181,0.00581213,2734.4,2733.8,2.39577535]
[1645944083624,0.00581213,2734.4,2733.8,1.39577535]
[1645944083829,3.65581061,2734.5,2733.8,1.39577535]
[1645944084224,0.00581213,2734.4,2733.8,1.39577535]
[1645944084627,0.00581213,2734.4,2733.7,0.3]
[1645944084827,0.00581213,2734.4,2733.6,5.1]
[1645944085026,0.00096,2734.4,2733.6,4.8]
[1645944085229,0.00581205,2734.4,2733.6,4.8]
[1645944085436,0.00677205,2734.4,2733.6,4.8]
[1645944085630,0.00677205,2734.4,2733.9,1.23979874]
[1645944085830,0.00581205,2734.4,2733.9,1.23979874]
[1645944086235,3.65581061,2734.5,2733.9,1.23979874]
[1645944086439,0.0058122,2734.4,2733.9,1.23979874]
[1645944087464,3.65581061,2734.5,2733.9,1.23979874]
[1645944087665,0.56069746,2734.4,2733.9,1.23979874]
[1645944087868,0.0058122,2734.4,2733.9,1.23979874]
[1645944088671,3.65581061,2734.5,2733.9,1.23979874]
[1645944088872,0.56111198,2734.4,2733.9,1.23979874]
[1645944089078,0.0058122,2734.4,2733.9,1.23979874]
[1645944089574,0.55572798,2734.3,2733.9,1.23979874]
[1645944089974,0.0058122,2734.4,2733.9,1.23979874]
[1645944090173,0.55576866,2734.3,2733.9,1.23979874]
[1645944090575,0.55576866,2734.3,2733.6,4.8]
[1645944090774,0.55576866,2734.3,2733.7,0.96344074]
[1645944091008,0.55576866,2734.3,2733.8,3.5]
[1645944091209,0.55576866,2734.2,2733.9,0.96344074]
[1645944091410,0.0058119,2734.4,2733.9,0.96344074]
[1645944091614,0.55630083,2734.3,2733.9,0.96344074]
[1645944092010,0.55630083,2734.3,2734.0,0.96344074]
[1645944092210,0.55630083,2734.3,2733.9,0.96344074]
[1645944092412,0.56211296,2734.4,2733.8,1.38819714]
[1645944092609,0.55630083,2734.3,2733.9,0.96469165]
[1645944093610,0.55630083,2734.2,2733.9,0.96469165]
[1645944093811,0.55630083,2734.1,2733.9,0.96469165]
[1645944094010,0.55630083,2734.0,2733.9,0.96469165]
[1645944094214,0.55724043,2734.3,2733.9,0.96469165]
[1645944094854,0.55724043,2734.2,2733.9,0.96469165]
[1645944095055,0.55724043,2734.1,2733.9,0.96469165]
[1645944095255,0.55724043,2734.3,2733.9,0.96469165]
[1645944095455,0.55742788,2734.2,2733.9,0.96469165]
[1645944095655,0.55742788,2734.3,2733.9,0.96469165]
[1645944095857,0.55742788,2734.2,2733.9,0.96469165]
[1645944096061,0.55742788,2734.1,2733.9,0.96469165]
[1645944096260,0.55742788,2734.0,2733.9,0.96469165]
[1645944096460,0.55755894,2734.3,2733.9,0.96469165]
[1645944096660,0.55766889,2734.2,2733.9,0.96469165]
[1645944096864,0.55766889,2734.1,2733.9,0.96469165]
[1645944097059,0.55766889,2734.0,2733.9,0.96469165]
[1645944097264,0.56350948,2734.4,2733.9,0.96469165]
[1645944097462,0.5576925,2734.3,2733.9,0.96469165]
[1645944097863,0.5576925,2734.2,2733.5,1.91308694]
[1645944098062,0.5576925,2734.1,2733.6,0.96637675]
[1645944098261,0.55784463,2734.0,2733.7,0.96640317]
[1645944098517,0.55784463,2733.9,2733.8,0.96640317]
[1645944098915,0.00096,2734.3,2733.6,0.96640317]
[1645944098916,0.55880463,2734.3,2733.6,0.96640317]
[1645944099113,0.55880463,2734.3,2733.7,0.96640317]
[1645944099114,0.55784463,2734.2,2733.7,0.96640317]
[1645944099314,0.55784463,2734.1,2733.8,0.96640317]
[1645944099520,0.7003993,2733.7,2733.5,0.71068694]
[1645944099715,0.7003993,2733.7,2733.6,0.9672775]
[1645944099914,1.25867556,2733.7,2733.6,0.9672775]
[1645944108323,4.95867556,2733.7,2733.6,0.9672775]
[1645944110381,4.95731982,2733.7,2733.6,0.9672775]
[1645944110582,4.95731982,2733.7,2733.6,2.20421427]
[1645944110990,4.95731982,2733.7,2733.6,0.9672775]
[1645944119661,4.9576007,2733.7,2733.6,0.9672775]